[Event "*** SCC Grand Prix: Titled Tuesday Blitz"]
[Site "Chess.com"]
[Date "2020.07.14"]
[Round "3"]
[White "Jaka_Brilej"]
[Black "Juanovic"]
[Result "1-0"]
[WhiteElo "2314"]
[BlackElo "2085"]
[TimeControl "180+1"]
[EndTime "10:29:20 PDT"]
[Termination "Jaka_Brilej won by resignation"]

1. e4 {[%clk 0:03:00.9]} 1... c5 {[%clk 0:02:59.3]} 2. Nf3 {[%clk 0:02:53.2]}
2... d6 {[%clk 0:02:59]} 3. d4 {[%clk 0:02:52.8]} 3... cxd4 {[%clk 0:02:58.7]}
4. Nxd4 {[%clk 0:02:53.7]} 4... Nf6 {[%clk 0:02:58.7]} 5. Nc3 {[%clk 0:02:51.3]}
5... g6 {[%clk 0:02:57.4]} 6. f3 {[%clk 0:02:49.7]} 6... Bg7 {[%clk 0:02:57.3]}
7. Be3 {[%clk 0:02:50.4]} 7... Nc6 {[%clk 0:02:56.8]} 8. Qd2 {[%clk 0:02:50.4]}
8... O-O {[%clk 0:02:56.7]} 9. g4 {[%clk 0:02:49.7]} 9... Bd7 {[%clk 0:02:55.3]}
10. O-O-O {[%clk 0:02:47.9]} 10... Rc8 {[%clk 0:02:53.8]} 11. h4 {[%clk
0:02:47.3]} 11... Ne5 {[%clk 0:02:52.8]} 12. h5 {[%clk 0:02:45.8]} 12... a6
{[%clk 0:02:51.6]} 13. Kb1 {[%clk 0:02:36.7]} 13... b5 {[%clk 0:02:50.6]} 14.
hxg6 {[%clk 0:02:31]} 14... fxg6 {[%clk 0:02:45.2]} 15. Bh6 {[%clk 0:02:30.7]}
15... Bxh6 {[%clk 0:02:45]} 16. Qxh6 {[%clk 0:02:29.5]} 16... Rxc3 {[%clk
0:02:44.9]} 17. bxc3 {[%clk 0:02:27.5]} 17... Qa5 {[%clk 0:02:42.1]} 18. Be2
{[%clk 0:01:50.7]} 18... Qxc3 {[%clk 0:02:38.9]} 19. g5 {[%clk 0:01:39.9]} 19...
Nh5 {[%clk 0:02:38.5]} 20. Rxh5 {[%clk 0:01:19.4]} 20... gxh5 {[%clk 0:02:39.4]}
21. g6 {[%clk 0:00:49.9]} 21... Nxg6 {[%clk 0:02:36.2]} 22. Qxh5 {[%clk
0:00:48.7]} 22... e5 {[%clk 0:02:19.4]} 23. Nb3 {[%clk 0:00:46.1]} 23... Be6
{[%clk 0:02:09.3]} 24. Rxd6 {[%clk 0:00:41]} 24... Qe1+ {[%clk 0:01:55]} 25. Bd1
{[%clk 0:00:40.4]} 25... Bc4 {[%clk 0:01:54.4]} 26. Qg5 {[%clk 0:00:19.8]} 26...
Qh1 {[%clk 0:01:26.8]} 27. Kc1 {[%clk 0:00:17.5]} 27... Qh2 {[%clk 0:01:07.4]}
28. Nc5 {[%clk 0:00:16.4]} 28... Qf4+ {[%clk 0:01:03.4]} 29. Qxf4 {[%clk
0:00:16.4]} 29... Nxf4 {[%clk 0:01:02.6]} 30. Rxa6 {[%clk 0:00:16.7]} 30... h5
{[%clk 0:00:59]} 31. Nd7 {[%clk 0:00:16.9]} 31... Rc8 {[%clk 0:00:52]} 32. Nxe5
{[%clk 0:00:16.9]} 32... Bf1 {[%clk 0:00:39.7]} 33. Kb2 {[%clk 0:00:16]} 33...
h4 {[%clk 0:00:36.8]} 34. Ng4 {[%clk 0:00:16]} 34... h3 {[%clk 0:00:35]} 35. Rh6
{[%clk 0:00:15.7]} 35... Kg7 {[%clk 0:00:33.9]} 36. Rh4 {[%clk 0:00:15.3]} 36...
Ng6 {[%clk 0:00:32.6]} 37. Rh5 {[%clk 0:00:15.7]} 37... Nf4 {[%clk 0:00:31.8]}
38. Rf5 {[%clk 0:00:16]} 38... Ne6 {[%clk 0:00:19.3]} 39. f4 {[%clk 0:00:14.4]}
39... Rh8 {[%clk 0:00:17]} 40. Bf3 {[%clk 0:00:14]} 40... Nd4 {[%clk 0:00:16.6]}
41. Rg5+ {[%clk 0:00:13.4]} 41... Kf7 {[%clk 0:00:16.1]} 42. Bh1 {[%clk
0:00:14.3]} 42... Rc8 {[%clk 0:00:14.3]} 43. Ne5+ {[%clk 0:00:14.6]} 43... Kf8
{[%clk 0:00:12.2]} 44. c3 {[%clk 0:00:15.5]} 44... Ne2 {[%clk 0:00:11.8]} 45.
Rf5+ {[%clk 0:00:15.4]} 45... Kg7 {[%clk 0:00:11.2]} 46. Rg5+ {[%clk 0:00:15.8]}
46... Kh6 {[%clk 0:00:11.6]} 47. Nf7+ {[%clk 0:00:15.8]} 47... Kh7 {[%clk
0:00:11.4]} 48. e5 {[%clk 0:00:16.3]} 48... Nxf4 {[%clk 0:00:11.7]} 49. Be4+
{[%clk 0:00:15.8]} 49... Ng6 {[%clk 0:00:06.8]} 50. Bxg6+ {[%clk 0:00:16.1]}
50... Kg7 {[%clk 0:00:06.9]} 51. Bf5+ {[%clk 0:00:16.5]} 51... Kf8 {[%clk
0:00:07.7]} 52. Bxc8 {[%clk 0:00:16.7]} 52... Kxf7 {[%clk 0:00:08.6]} 53. Rh5
{[%clk 0:00:16.9]} 53... Bg2 {[%clk 0:00:08.9]} 54. Rxh3 {[%clk 0:00:17]} 54...
Kg6 {[%clk 0:00:09.8]} 55. Rg3+ {[%clk 0:00:15.6]} 1-0

[Event "*** SCC Grand Prix: Titled Tuesday Blitz"]
[Site "Chess.com"]
[Date "2020.07.14"]
[Round "3"]
[White "zajka-molotok"]
[Black "maciek_92"]
[Result "0-1"]
[WhiteElo "2408"]
[BlackElo "2640"]
[TimeControl "180+1"]
[EndTime "10:29:22 PDT"]
[Termination "maciek_92 won on time"]

1. e4 {[%clk 0:03:00.9]} 1... c5 {[%clk 0:02:58.4]} 2. c3 {[%clk 0:03:00.3]}
2... Nf6 {[%clk 0:02:57.5]} 3. e5 {[%clk 0:03:00.2]} 3... Nd5 {[%clk 0:02:58]}
4. Nf3 {[%clk 0:03:00.3]} 4... Nc6 {[%clk 0:02:57.8]} 5. Bc4 {[%clk 0:03:00.3]}
5... Nb6 {[%clk 0:02:54.6]} 6. Bb3 {[%clk 0:03:00]} 6... c4 {[%clk 0:02:54.4]}
7. Bc2 {[%clk 0:02:59.7]} 7... Qc7 {[%clk 0:02:54.9]} 8. Qe2 {[%clk 0:02:55.4]}
8... g5 {[%clk 0:02:54.9]} 9. Na3 {[%clk 0:02:19.4]} 9... g4 {[%clk 0:01:45.7]}
10. Nb5 {[%clk 0:02:17.6]} 10... Qb8 {[%clk 0:01:45.8]} 11. Ng5 {[%clk
0:02:16.8]} 11... Nxe5 {[%clk 0:01:30.5]} 12. O-O {[%clk 0:01:55.9]} 12... h6
{[%clk 0:01:20]} 13. Ne4 {[%clk 0:01:53.5]} 13... a6 {[%clk 0:01:06.5]} 14. Nd4
{[%clk 0:01:46.1]} 14... d5 {[%clk 0:01:06]} 15. Ng3 {[%clk 0:01:44.4]} 15... h5
{[%clk 0:01:02.1]} 16. f4 {[%clk 0:01:20.2]} 16... gxf3 {[%clk 0:00:58.8]} 17.
Nxf3 {[%clk 0:01:19.2]} 17... Bg7 {[%clk 0:00:44.5]} 18. d4 {[%clk 0:01:00]}
18... cxd3 {[%clk 0:00:44.6]} 19. Bxd3 {[%clk 0:00:59.9]} 19... Bg4 {[%clk
0:00:44.2]} 20. Kh1 {[%clk 0:00:24.9]} 20... Nbd7 {[%clk 0:00:33]} 21. Bf4
{[%clk 0:00:20.5]} 21... Bxf3 {[%clk 0:00:30]} 22. Rxf3 {[%clk 0:00:19]} 22...
e6 {[%clk 0:00:29.2]} 23. Re3 {[%clk 0:00:14.3]} 23... f6 {[%clk 0:00:20]} 24.
Nxh5 {[%clk 0:00:12.8]} 24... Kf7 {[%clk 0:00:18.3]} 25. Nxg7 {[%clk 0:00:10.7]}
25... Kxg7 {[%clk 0:00:19.2]} 26. Re1 {[%clk 0:00:09.9]} 26... Qe8 {[%clk
0:00:17.7]} 27. Rg3+ {[%clk 0:00:09.4]} 27... Kf8 {[%clk 0:00:16.7]} 28. Bc2
{[%clk 0:00:06.6]} 28... Qh5 {[%clk 0:00:15.4]} 29. Qxh5 {[%clk 0:00:05.7]}
29... Rxh5 {[%clk 0:00:16.3]} 30. h3 {[%clk 0:00:04.3]} 30... Kf7 {[%clk
0:00:14.6]} 31. Rge3 {[%clk 0:00:03.4]} 31... Rg8 {[%clk 0:00:14.1]} 32. Rg3
{[%clk 0:00:02.6]} 32... Rxg3 {[%clk 0:00:13.8]} 33. Bxg3 {[%clk 0:00:03.5]}
33... Rh8 {[%clk 0:00:14.1]} 34. Kg1 {[%clk 0:00:02.8]} 34... Nc4 {[%clk
0:00:13.9]} 35. b3 {[%clk 0:00:02.3]} 35... Nce5 {[%clk 0:00:13.1]} 36. Re2
{[%clk 0:00:01.7]} 36... Nc6 {[%clk 0:00:12.2]} 37. Kf2 {[%clk 0:00:01.7]} 37...
b5 {[%clk 0:00:11.5]} 38. Rd2 {[%clk 0:00:01.2]} 38... Ne7 {[%clk 0:00:11.7]}
39. Bd3 {[%clk 0:00:01.5]} 39... Nc5 {[%clk 0:00:10.8]} 40. Bc2 {[%clk
0:00:01.8]} 40... e5 {[%clk 0:00:10.7]} 41. Rd3 {[%clk 0:00:01.2]} 41... Ne4+
{[%clk 0:00:10.3]} 42. Kf3 {[%clk 0:00:01.4]} 42... Rg8 {[%clk 0:00:10.4]} 43.
Bf2 {[%clk 0:00:01.1]} 43... Rc8 {[%clk 0:00:09.5]} 44. g4 {[%clk 0:00:01.4]}
44... Rxc3 {[%clk 0:00:09.1]} 45. Rxc3 {[%clk 0:00:02.3]} 45... Nxc3 {[%clk
0:00:10]} 46. h4 {[%clk 0:00:02]} 46... Nxa2 {[%clk 0:00:10]} 47. h5 {[%clk
0:00:01.3]} 47... Nb4 {[%clk 0:00:10.4]} 0-1

[Event "*** SCC Grand Prix: Titled Tuesday Blitz"]
[Site "Chess.com"]
[Date "2020.07.14"]
[Round "3"]
[White "superchess02"]
[Black "kirillshevchenko"]
[Result "1-0"]
[WhiteElo "2671"]
[BlackElo "2923"]
[TimeControl "180+1"]
[EndTime "10:29:25 PDT"]
[Termination "superchess02 won by resignation"]

1. d4 {[%clk 0:03:00.9]} 1... Nf6 {[%clk 0:03:00.1]} 2. c4 {[%clk 0:03:01.8]}
2... g6 {[%clk 0:03:00.5]} 3. Nc3 {[%clk 0:03:02.5]} 3... Bg7 {[%clk 0:03:01.1]}
4. e4 {[%clk 0:03:03.1]} 4... d6 {[%clk 0:03:01.2]} 5. Nf3 {[%clk 0:03:03.6]}
5... O-O {[%clk 0:03:00.6]} 6. Be2 {[%clk 0:03:04.2]} 6... e5 {[%clk 0:03:01.1]}
7. O-O {[%clk 0:03:04.9]} 7... Nc6 {[%clk 0:02:56.4]} 8. d5 {[%clk 0:03:05.4]}
8... Ne7 {[%clk 0:02:56.7]} 9. b4 {[%clk 0:03:05.9]} 9... a5 {[%clk 0:02:56.6]}
10. bxa5 {[%clk 0:03:05.9]} 10... Rxa5 {[%clk 0:02:57.5]} 11. a4 {[%clk
0:03:05.5]} 11... c5 {[%clk 0:02:57.9]} 12. Bd2 {[%clk 0:03:05.5]} 12... Ra6
{[%clk 0:02:56.9]} 13. Ne1 {[%clk 0:03:05.6]} 13... Nd7 {[%clk 0:02:55.4]} 14.
Ra3 {[%clk 0:03:02.4]} 14... f5 {[%clk 0:02:54.8]} 15. f4 {[%clk 0:03:02.7]}
15... exf4 {[%clk 0:02:23.2]} 16. Bxf4 {[%clk 0:03:03.6]} 16... Ne5 {[%clk
0:02:23.8]} 17. Nf3 {[%clk 0:02:49.9]} 17... Ng4 {[%clk 0:01:45.3]} 18. Nb5
{[%clk 0:02:16.1]} 18... fxe4 {[%clk 0:01:20.4]} 19. Ng5 {[%clk 0:02:15.6]}
19... Ne5 {[%clk 0:01:19.8]} 20. Nxe4 {[%clk 0:02:09.2]} 20... Nf5 {[%clk
0:01:17.2]} 21. g4 {[%clk 0:01:56.4]} 21... Nd4 {[%clk 0:01:12.9]} 22. Nxd4
{[%clk 0:01:56]} 22... cxd4 {[%clk 0:01:13.8]} 23. Bg5 {[%clk 0:01:24.6]} 23...
Qe8 {[%clk 0:01:03.5]} 24. c5 {[%clk 0:00:47.4]} 24... d3 {[%clk 0:01:00.3]} 25.
Rxf8+ {[%clk 0:00:39.1]} 25... Qxf8 {[%clk 0:01:00.2]} 26. Rxd3 {[%clk
0:00:34.7]} 26... Nxd3 {[%clk 0:00:57.3]} 27. Bxd3 {[%clk 0:00:35.6]} 27... Rxa4
{[%clk 0:00:57.6]} 28. Qxa4 {[%clk 0:00:34.2]} 28... dxc5 {[%clk 0:00:54]} 29.
d6 {[%clk 0:00:32.5]} 29... Bd4+ {[%clk 0:00:48]} 30. Kg2 {[%clk 0:00:32.4]}
30... Bxg4 {[%clk 0:00:48.1]} 31. Be2 {[%clk 0:00:29.6]} 31... Qc8 {[%clk
0:00:21.6]} 32. Nf6+ {[%clk 0:00:22.4]} 32... Bxf6 {[%clk 0:00:12.6]} 33. Bxg4
{[%clk 0:00:22.7]} 33... Qd8 {[%clk 0:00:07.8]} 34. Bxf6 {[%clk 0:00:20.6]}
34... Qxf6 {[%clk 0:00:08.4]} 35. Qa8+ {[%clk 0:00:15.6]} 35... Kg7 {[%clk
0:00:08.1]} 36. Qxb7+ {[%clk 0:00:16.1]} 36... Kh6 {[%clk 0:00:07.1]} 37. d7
{[%clk 0:00:16.5]} 37... Qd4 {[%clk 0:00:04.8]} 38. Qf3 {[%clk 0:00:14.4]} 38...
Qd2+ {[%clk 0:00:03.4]} 39. Kg3 {[%clk 0:00:14.3]} 39... Qe1+ {[%clk 0:00:03]}
40. Qf2 {[%clk 0:00:14.2]} 40... Qc3+ {[%clk 0:00:03.2]} 41. Kg2 {[%clk
0:00:13.6]} 41... Qd3 {[%clk 0:00:03.6]} 42. Qh4+ {[%clk 0:00:13.5]} 42... Kg7
{[%clk 0:00:04.1]} 43. Qe7+ {[%clk 0:00:12.7]} 43... Kh6 {[%clk 0:00:04]} 44.
d8=Q {[%clk 0:00:10]} 1-0

[Event "*** SCC Grand Prix: Titled Tuesday Blitz"]
[Site "Chess.com"]
[Date "2020.07.14"]
[Round "3"]
[White "praveenb2002"]
[Black "Slovak_fighter2000"]
[Result "0-1"]
[WhiteElo "2708"]
[BlackElo "2443"]
[TimeControl "180+1"]
[EndTime "10:29:26 PDT"]
[Termination "Slovak_fighter2000 won by resignation"]

1. d4 {[%clk 0:03:00.9]} 1... Nf6 {[%clk 0:02:58.7]} 2. c4 {[%clk 0:03:00.7]}
2... e6 {[%clk 0:02:57.5]} 3. Nc3 {[%clk 0:03:00.3]} 3... Bb4 {[%clk 0:02:56]}
4. Qc2 {[%clk 0:03:00.9]} 4... O-O {[%clk 0:02:50.4]} 5. a3 {[%clk 0:02:57.9]}
5... Bxc3+ {[%clk 0:02:49.3]} 6. Qxc3 {[%clk 0:02:58.8]} 6... b6 {[%clk
0:02:46.9]} 7. Bg5 {[%clk 0:02:58.5]} 7... Bb7 {[%clk 0:02:46.3]} 8. f3 {[%clk
0:02:53.9]} 8... h6 {[%clk 0:02:41.3]} 9. Bh4 {[%clk 0:02:54.2]} 9... d6 {[%clk
0:02:37.7]} 10. e3 {[%clk 0:02:51.7]} 10... Nbd7 {[%clk 0:02:32]} 11. Bd3 {[%clk
0:02:52]} 11... c5 {[%clk 0:02:23.3]} 12. Ne2 {[%clk 0:02:52]} 12... cxd4 {[%clk
0:02:20.8]} 13. exd4 {[%clk 0:02:51.5]} 13... a6 {[%clk 0:02:16.4]} 14. O-O
{[%clk 0:02:51.6]} 14... Qc7 {[%clk 0:02:14.4]} 15. Rac1 {[%clk 0:02:44.2]}
15... Rac8 {[%clk 0:02:12.7]} 16. Qd2 {[%clk 0:02:41.6]} 16... Rfe8 {[%clk
0:02:01.1]} 17. Kh1 {[%clk 0:02:37]} 17... Qb8 {[%clk 0:01:53.3]} 18. Bb1 {[%clk
0:02:36.4]} 18... e5 {[%clk 0:01:28]} 19. Rfd1 {[%clk 0:02:21.3]} 19... e4
{[%clk 0:01:19.6]} 20. fxe4 {[%clk 0:02:18.1]} 20... Bxe4 {[%clk 0:01:20.5]} 21.
Bxe4 {[%clk 0:02:09.8]} 21... Nxe4 {[%clk 0:01:21.4]} 22. Qd3 {[%clk 0:01:55.1]}
22... Ndf6 {[%clk 0:01:09.6]} 23. Rf1 {[%clk 0:01:49.1]} 23... b5 {[%clk
0:01:05.1]} 24. b3 {[%clk 0:01:26.5]} 24... bxc4 {[%clk 0:01:01.9]} 25. bxc4
{[%clk 0:01:27.4]} 25... Qb2 {[%clk 0:00:54.5]} 26. Rc2 {[%clk 0:01:18.4]} 26...
Qb6 {[%clk 0:00:49.6]} 27. Nf4 {[%clk 0:01:07.9]} 27... g5 {[%clk 0:00:39.1]}
28. Qf3 {[%clk 0:00:53.4]} 28... gxh4 {[%clk 0:00:30]} 29. Nh5 {[%clk
0:00:28.7]} 29... Qxd4 {[%clk 0:00:21.8]} 30. Re2 {[%clk 0:00:28.5]} 30... Nxh5
{[%clk 0:00:11.5]} 31. Qxf7+ {[%clk 0:00:24.2]} 31... Kh8 {[%clk 0:00:11.8]} 32.
Qxh5 {[%clk 0:00:24.8]} 32... Re6 {[%clk 0:00:07.1]} 33. Ree1 {[%clk 0:00:16.4]}
33... Rce8 {[%clk 0:00:07.3]} 34. Re2 {[%clk 0:00:06.8]} 34... Ng3+ {[%clk
0:00:05]} 35. hxg3 {[%clk 0:00:05.8]} 35... Rxe2 {[%clk 0:00:04]} 36. Qxh6+
{[%clk 0:00:05.9]} 36... Kg8 {[%clk 0:00:03.8]} 37. gxh4 {[%clk 0:00:04.8]}
37... Qg7 {[%clk 0:00:02.4]} 38. Qxg7+ {[%clk 0:00:02.6]} 38... Kxg7 {[%clk
0:00:03.3]} 39. Rf4 {[%clk 0:00:03]} 39... R2e4 {[%clk 0:00:03.2]} 40. Rf3
{[%clk 0:00:03]} 40... Rxh4+ {[%clk 0:00:03.4]} 41. Kg1 {[%clk 0:00:02.9]} 41...
Rh6 {[%clk 0:00:04.3]} 42. Rg3+ {[%clk 0:00:03.4]} 42... Rg6 {[%clk 0:00:04.9]}
43. Rb3 {[%clk 0:00:04.1]} 43... Rf6 {[%clk 0:00:05.3]} 44. Rb6 {[%clk
0:00:04.6]} 44... d5 {[%clk 0:00:05.2]} 45. Rb7+ {[%clk 0:00:05.2]} 45... Rf7
{[%clk 0:00:05.2]} 46. Rb6 {[%clk 0:00:05.7]} 46... dxc4 {[%clk 0:00:05.6]} 47.
Rxa6 {[%clk 0:00:06.2]} 47... Rc7 {[%clk 0:00:06]} 48. Rb6 {[%clk 0:00:06.6]}
48... Rec8 {[%clk 0:00:06.5]} 49. Rb1 {[%clk 0:00:07.3]} 49... c3 {[%clk
0:00:07.3]} 50. Rc1 {[%clk 0:00:08]} 50... c2 {[%clk 0:00:07.8]} 51. Kf2 {[%clk
0:00:08.9]} 51... Rd7 {[%clk 0:00:08.2]} 52. Ke2 {[%clk 0:00:09.3]} 52... Rd1
{[%clk 0:00:08]} 53. Rxd1 {[%clk 0:00:09.3]} 53... cxd1=Q+ {[%clk 0:00:08.9]}
54. Kxd1 {[%clk 0:00:10.1]} 54... Rc3 {[%clk 0:00:09.2]} 0-1

[Event "*** SCC Grand Prix: Titled Tuesday Blitz"]
[Site "Chess.com"]
[Date "2020.07.14"]
[Round "3"]
[White "124chess"]
[Black "FabianoCaruana"]
[Result "0-1"]
[WhiteElo "2686"]
[BlackElo "3015"]
[TimeControl "180+1"]
[EndTime "10:29:28 PDT"]
[Termination "FabianoCaruana won on time"]

1. d4 {[%clk 0:03:00.9]} 1... Nf6 {[%clk 0:02:59.3]} 2. c4 {[%clk 0:03:01.3]}
2... Nc6 {[%clk 0:02:58.9]} 3. Nc3 {[%clk 0:02:58.2]} 3... e5 {[%clk 0:02:58.1]}
4. d5 {[%clk 0:02:58.8]} 4... Ne7 {[%clk 0:02:57.3]} 5. a3 {[%clk 0:02:59.4]}
5... Ng6 {[%clk 0:02:56.7]} 6. h4 {[%clk 0:02:58.7]} 6... h5 {[%clk 0:02:54.5]}
7. Bg5 {[%clk 0:02:54.9]} 7... d6 {[%clk 0:02:53.5]} 8. e3 {[%clk 0:02:54.7]}
8... Be7 {[%clk 0:02:53.3]} 9. Bd3 {[%clk 0:02:52.8]} 9... Nf8 {[%clk
0:02:52.4]} 10. Qc2 {[%clk 0:02:35.7]} 10... Ng4 {[%clk 0:02:46.9]} 11. Bxe7
{[%clk 0:02:32.8]} 11... Qxe7 {[%clk 0:02:47.8]} 12. Nf3 {[%clk 0:02:28.7]}
12... Nd7 {[%clk 0:02:44.9]} 13. Ng5 {[%clk 0:02:15.4]} 13... Nc5 {[%clk
0:02:31.8]} 14. b4 {[%clk 0:02:13.4]} 14... Nxd3+ {[%clk 0:02:31.3]} 15. Qxd3
{[%clk 0:02:14.3]} 15... Bd7 {[%clk 0:02:26.5]} 16. e4 {[%clk 0:01:43.4]} 16...
f6 {[%clk 0:02:22.2]} 17. Nf3 {[%clk 0:01:38.2]} 17... g6 {[%clk 0:02:21.1]} 18.
Nd1 {[%clk 0:01:17.4]} 18... O-O {[%clk 0:02:20]} 19. Ne3 {[%clk 0:01:16.9]}
19... Nh6 {[%clk 0:02:04]} 20. Rc1 {[%clk 0:01:05.2]} 20... a6 {[%clk
0:01:48.7]} 21. Qc2 {[%clk 0:00:54.1]} 21... f5 {[%clk 0:01:42.7]} 22. Ng5
{[%clk 0:00:42.8]} 22... f4 {[%clk 0:01:39.1]} 23. Nf1 {[%clk 0:00:43.1]} 23...
c6 {[%clk 0:01:20.4]} 24. Nd2 {[%clk 0:00:41.3]} 24... cxd5 {[%clk 0:01:20.4]}
25. exd5 {[%clk 0:00:40.6]} 25... Bf5 {[%clk 0:01:20.4]} 26. Nde4 {[%clk
0:00:40.2]} 26... Rac8 {[%clk 0:01:19.1]} 27. O-O {[%clk 0:00:37.6]} 27... Nf7
{[%clk 0:01:18.5]} 28. Nf3 {[%clk 0:00:17.2]} 28... Rc7 {[%clk 0:01:08.5]} 29.
Qe2 {[%clk 0:00:17]} 29... Rfc8 {[%clk 0:01:08.9]} 30. c5 {[%clk 0:00:16]} 30...
Kg7 {[%clk 0:01:02.9]} 31. cxd6 {[%clk 0:00:13.5]} 31... Nxd6 {[%clk 0:01:03.8]}
32. Rxc7 {[%clk 0:00:13.8]} 32... Rxc7 {[%clk 0:01:04.2]} 33. Nc5 {[%clk
0:00:14.3]} 33... Nf7 {[%clk 0:00:51.8]} 34. Ng5 {[%clk 0:00:14.5]} 34... Nxg5
{[%clk 0:00:50.6]} 35. hxg5 {[%clk 0:00:15.4]} 35... Qd6 {[%clk 0:00:45.9]} 36.
Rd1 {[%clk 0:00:14.6]} 36... Bg4 {[%clk 0:00:36.9]} 37. f3 {[%clk 0:00:14.6]}
37... Bf5 {[%clk 0:00:37]} 38. Ne4 {[%clk 0:00:12.7]} 38... Qb6+ {[%clk
0:00:37]} 39. Kh2 {[%clk 0:00:12.5]} 39... Qe3 {[%clk 0:00:30.7]} 40. Qxe3
{[%clk 0:00:09.8]} 40... fxe3 {[%clk 0:00:31.6]} 41. Re1 {[%clk 0:00:10.3]}
41... Rd7 {[%clk 0:00:28.1]} 42. Rxe3 {[%clk 0:00:09.7]} 42... Rxd5 {[%clk
0:00:27.8]} 43. Nf6 {[%clk 0:00:10.3]} 43... Rd3 {[%clk 0:00:14.1]} 44. Rxe5
{[%clk 0:00:10.4]} 44... Kf7 {[%clk 0:00:14.6]} 45. Rc5 {[%clk 0:00:10.1]} 45...
Rxa3 {[%clk 0:00:13]} 46. Rc7+ {[%clk 0:00:10.4]} 46... Ke6 {[%clk 0:00:13.7]}
47. Rxb7 {[%clk 0:00:11.2]} 47... Ra2 {[%clk 0:00:13.5]} 48. Rb6+ {[%clk
0:00:11.3]} 48... Ke5 {[%clk 0:00:13.6]} 49. Kg3 {[%clk 0:00:07.9]} 49... h4+
{[%clk 0:00:12.6]} 50. Kxh4 {[%clk 0:00:08.3]} 50... Rxg2 {[%clk 0:00:13]} 51.
Ne4 {[%clk 0:00:05.8]} 51... Kf4 {[%clk 0:00:12]} 0-1

[Event "*** SCC Grand Prix: Titled Tuesday Blitz"]
[Site "Chess.com"]
[Date "2020.07.14"]
[Round "3"]
[White "TimofeevAr"]
[Black "KonstantinB_1983"]
[Result "1-0"]
[WhiteElo "2783"]
[BlackElo "2435"]
[TimeControl "180+1"]
[EndTime "10:29:28 PDT"]
[Termination "TimofeevAr won by resignation"]

1. c4 {[%clk 0:03:00.9]} 1... c6 {[%clk 0:02:59]} 2. Nf3 {[%clk 0:03:00.2]} 2...
d5 {[%clk 0:02:58.6]} 3. e3 {[%clk 0:03:00.6]} 3... Nf6 {[%clk 0:02:57.8]} 4.
Nc3 {[%clk 0:03:00.7]} 4... a6 {[%clk 0:02:57.1]} 5. a4 {[%clk 0:02:51.7]} 5...
Bf5 {[%clk 0:02:55]} 6. Qb3 {[%clk 0:02:47.5]} 6... Ra7 {[%clk 0:02:53.8]} 7. d4
{[%clk 0:02:45]} 7... e6 {[%clk 0:02:50.5]} 8. Be2 {[%clk 0:02:43.9]} 8... Bd6
{[%clk 0:02:43]} 9. O-O {[%clk 0:02:42.6]} 9... Nbd7 {[%clk 0:02:38.7]} 10. Qd1
{[%clk 0:02:41.9]} 10... h6 {[%clk 0:02:35.8]} 11. Bd3 {[%clk 0:02:41.7]} 11...
Bxd3 {[%clk 0:02:30.5]} 12. Qxd3 {[%clk 0:02:41.4]} 12... O-O {[%clk 0:02:26.3]}
13. e4 {[%clk 0:02:41.2]} 13... dxe4 {[%clk 0:02:25.5]} 14. Nxe4 {[%clk
0:02:41.4]} 14... Nxe4 {[%clk 0:02:24.7]} 15. Qxe4 {[%clk 0:02:41.8]} 15... Nf6
{[%clk 0:02:24.5]} 16. Qe2 {[%clk 0:02:42]} 16... Ra8 {[%clk 0:02:23.2]} 17. Be3
{[%clk 0:02:41.7]} 17... Qc7 {[%clk 0:02:20.4]} 18. h3 {[%clk 0:02:39.2]} 18...
Rfe8 {[%clk 0:02:19.3]} 19. Rfe1 {[%clk 0:02:33.4]} 19... c5 {[%clk 0:02:17]}
20. Rad1 {[%clk 0:02:29.7]} 20... Rac8 {[%clk 0:02:06.8]} 21. b3 {[%clk
0:02:29.2]} 21... Red8 {[%clk 0:01:57.6]} 22. Rd3 {[%clk 0:02:08.2]} 22... cxd4
{[%clk 0:01:53.6]} 23. Bxd4 {[%clk 0:02:07.6]} 23... Be7 {[%clk 0:01:48]} 24.
Red1 {[%clk 0:02:07]} 24... Qa5 {[%clk 0:01:45.5]} 25. Ne5 {[%clk 0:02:03.1]}
25... Qc7 {[%clk 0:01:40.9]} 26. Nf3 {[%clk 0:01:46.3]} 26... Qa5 {[%clk
0:01:26.4]} 27. g3 {[%clk 0:01:45.8]} 27... Qf5 {[%clk 0:01:19.6]} 28. Kg2
{[%clk 0:01:43.8]} 28... Qe4 {[%clk 0:01:17.1]} 29. Qxe4 {[%clk 0:01:38.6]}
29... Nxe4 {[%clk 0:01:16.1]} 30. Bb6 {[%clk 0:01:39.2]} 30... Rxd3 {[%clk
0:01:09.4]} 31. Rxd3 {[%clk 0:01:39.1]} 31... Rc6 {[%clk 0:01:06.6]} 32. a5
{[%clk 0:01:37]} 32... Rd6 {[%clk 0:01:04.9]} 33. Rxd6 {[%clk 0:01:34.7]} 33...
Bxd6 {[%clk 0:01:03.7]} 34. Nd4 {[%clk 0:01:34.9]} 34... Kf8 {[%clk 0:00:59.2]}
35. Kf3 {[%clk 0:01:34.5]} 35... Nf6 {[%clk 0:00:52.7]} 36. Ke3 {[%clk
0:01:29.3]} 36... Ke7 {[%clk 0:00:50.5]} 37. c5 {[%clk 0:01:16]} 37... Nd5+
{[%clk 0:00:46.2]} 38. Kd3 {[%clk 0:01:16.1]} 38... Be5 {[%clk 0:00:44.1]} 39.
c6 {[%clk 0:01:07.3]} 39... bxc6 {[%clk 0:00:12.8]} 40. Nxc6+ {[%clk 0:01:06.8]}
40... Kd6 {[%clk 0:00:12.7]} 41. Nxe5 {[%clk 0:01:05.6]} 41... Kxe5 {[%clk
0:00:12.4]} 42. Bd4+ {[%clk 0:01:06.2]} 42... Kd6 {[%clk 0:00:12]} 43. Bxg7
{[%clk 0:01:06.2]} 43... h5 {[%clk 0:00:12.3]} 44. Kc4 {[%clk 0:01:04.7]} 44...
Kc6 {[%clk 0:00:11.6]} 45. Bd4 {[%clk 0:00:59.2]} 45... Ne7 {[%clk 0:00:11.2]}
46. b4 {[%clk 0:00:53.1]} 46... Nf5 {[%clk 0:00:10.9]} 47. Bc5 {[%clk 0:00:53]}
47... Ng7 {[%clk 0:00:09.9]} 48. b5+ {[%clk 0:00:51.9]} 48... axb5+ {[%clk
0:00:08.9]} 49. Kb4 {[%clk 0:00:52.3]} 49... Ne8 {[%clk 0:00:09.1]} 50. a6
{[%clk 0:00:52.2]} 50... Nc7 {[%clk 0:00:09.1]} 51. a7 {[%clk 0:00:51.8]} 51...
Na6+ {[%clk 0:00:08.2]} 52. Ka5 {[%clk 0:00:52.1]} 52... Nc7 {[%clk 0:00:08.1]}
53. Bb6 {[%clk 0:00:50.1]} 53... Na8 {[%clk 0:00:07.3]} 54. Bd4 {[%clk
0:00:48.5]} 54... f5 {[%clk 0:00:06.1]} 55. f3 {[%clk 0:00:42.7]} 55... Nc7
{[%clk 0:00:05]} 56. g4 {[%clk 0:00:40.3]} 56... fxg4 {[%clk 0:00:03.9]} 57.
fxg4 {[%clk 0:00:40.4]} 57... hxg4 {[%clk 0:00:03.9]} 58. hxg4 {[%clk
0:00:40.8]} 58... Na8 {[%clk 0:00:03.6]} 59. g5 {[%clk 0:00:41]} 59... Kd5
{[%clk 0:00:03.8]} 60. g6 {[%clk 0:00:39.6]} 60... e5 {[%clk 0:00:03.4]} 61.
Bxe5 {[%clk 0:00:37.7]} 1-0